bitfinex/quotes_SOLUSD_20250829
["timestamp","ask_amount","ask_price","bid_price","bid_amount"]
[1756446106973,55.99749077,215.63,215.62,0.03]
[1756446107286,59.74039362,215.63,215.62,0.03]
[1756446108483,85.74039362,215.63,215.62,0.03]
[1756446108793,39.87991715,215.6,215.59,0.03]
[1756446108969,84.29235321,215.6,215.59,0.03]
[1756446109286,84.95235321,215.6,215.59,0.03]
[1756446109467,51.11652841,215.6,215.59,0.03]
[1756446109662,84.95235321,215.6,215.59,0.03]
[1756446109967,45.48255,215.6,215.59,0.03]
[1756446110288,82.96255,215.6,215.59,0.03]
[1756446110660,80.15849686,215.6,215.59,0.03]
[1756446111091,80.44282,215.6,215.59,0.03]
[1756446111273,80.30065843,215.6,215.59,0.03]
[1756446111471,80.44282,215.6,215.59,0.03]
[1756446112089,13.59559401,215.62,215.59,0.75]
[1756446112387,13.59559401,215.63,215.59,0.75]
[1756446112593,13.59559401,215.63,215.59,5.38837591]
[1756446112770,13.59559401,215.63,215.6,0.72]
[1756446112979,13.59559401,215.66,215.6,0.72]
[1756446113176,0.28432314,215.65,215.6,0.72]
[1756446113377,13.59559401,215.66,215.6,0.72]
[1756446113994,0.28432314,215.65,215.6,0.72]
[1756446114291,0.14216157,215.65,215.6,5.35806419]
[1756446114469,0.14216157,215.65,215.61,0.72]
[1756446114671,0.28432314,215.65,215.61,0.72]
[1756446115095,0.28432314,215.65,215.61,5.35799129]
[1756446115289,0.28432314,215.65,215.61,4.63799129]
[1756446115474,0.28432314,215.65,215.62,0.72]
[1756446115673,0.28432314,215.65,215.63,0.72]
[1756446116791,0.28432314,215.65,215.59,0.03]
[1756446116969,0.28432314,215.65,215.59,0.75]
[1756446117173,4.92149378,215.65,215.59,0.75]
[1756446117473,0.28432314,215.63,215.59,0.03]
[1756446117673,13.59559401,215.62,215.6,0.72]
[1756446117889,13.87991715,215.62,215.61,0.72]
[1756446118092,0.06,215.72,215.61,0.72]
[1756446118392,0.06,215.72,215.62,26.0]
[1756446118692,0.06,215.72,215.63,0.72]
[1756446118993,0.06,215.72,215.66,26.0]
[1756446119184,0.06,215.72,215.67,0.72]
[1756446121076,0.28432314,215.69,215.63,0.66]
[1756446121291,13.59559401,215.71,215.63,0.66]
[1756446121473,13.87991715,215.71,215.63,0.66]
[1756446121892,0.06,215.72,215.63,26.66]
[1756446122094,0.34432314,215.72,215.64,0.66]
[1756446122475,4.12186588,215.72,215.64,0.66]
[1756446122681,0.28432314,215.7,215.64,0.66]
[1756446123293,14.29559401,215.69,215.6,5.29804438]
[1756446123490,0.28432314,215.68,215.61,0.66]
[1756446124303,0.28432314,215.69,215.61,0.66]
[1756446124798,0.28432314,215.66,215.59,0.03]
[1756446124998,0.28432314,215.64,215.59,0.03]
[1756446125190,0.28432314,215.64,215.59,0.69]
[1756446125501,13.59559401,215.65,215.6,0.66]
[1756446125703,13.59559401,215.65,215.59,4.6684204]
[1756446125704,13.59559401,215.65,215.61,0.66]
[1756446126011,13.87991715,215.67,215.62,0.66]
[1756446126205,3.07686247,215.66,215.62,0.66]
[1756446126382,3.07690888,215.66,215.63,0.66]
[1756446126579,0.28432314,215.67,215.63,0.66]
[1756446126782,0.28432314,215.67,215.64,5.29726035]
[1756446127102,0.28432314,215.68,215.65,0.66]
[1756446127403,37.48,215.7,215.66,0.66]
[1756446127598,3.07804809,215.69,215.66,0.66]
[1756446127903,0.14216157,215.7,215.67,0.66]
[1756446128091,0.28432314,215.71,215.67,0.66]
[1756446129992,0.7,215.7,215.63,0.66]
[1756446130202,13.59559401,215.69,215.63,0.66]
[1756446131400,4.92020259,215.71,215.64,4.63735856]
[1756446131811,7.99923839,215.71,215.63,5.29755809]
[1756446132308,8.69923839,215.71,215.63,5.29755809]
[1756446132519,13.87991715,215.69,215.63,5.29755809]
[1756446132687,13.87991715,215.69,215.64,0.66]
[1756446132892,13.87991715,215.69,215.63,4.63755809]
[1756446132893,13.87991715,215.69,215.65,0.66]
[1756446133204,0.06,215.72,215.66,26.66]
[1756446133402,0.06,215.72,215.67,5.29671349]
[1756446134012,0.06,215.72,215.68,0.66]
[1756446134189,0.06,215.72,215.69,0.66]
[1756446135805,0.06,215.72,215.7,0.66]
[1756446136198,0.06,215.72,215.71,0.66]
[1756446137031,0.06,215.72,215.71,5.29585369]
[1756446137736,0.06,215.72,215.71,0.66]
[1756446138522,0.06,215.72,215.71,5.29585369]
[1756446139427,0.06,215.72,215.71,31.29585369]
[1756446140226,0.06,215.72,215.71,5.29585369]
[1756446140427,0.06,215.72,215.71,2.517484]
[1756446140728,0.06,215.72,215.7,30.63605747]
[1756446141229,0.06,215.72,215.71,0.66]
[1756446141721,0.06,215.72,215.7,30.63605747]
[1756446142023,0.06,215.72,215.7,31.29605747]
[1756446142721,0.06,215.72,215.66,0.66]
[1756446142722,0.76,215.72,215.66,0.66]
[1756446142934,0.76,215.72,215.67,4.63649923]
[1756446143698,0.76,215.72,215.67,5.29649923]
[1756446143927,0.06,215.72,215.68,0.66]
[1756446144606,0.06,215.72,215.69,0.66]
[1756446145109,0.06,215.72,215.67,4.63649923]
[1756446145318,0.06,215.72,215.68,0.66]
[1756446145509,0.06,215.72,215.69,0.66]
[1756446146032,0.06,215.72,215.7,0.66]
[1756446146816,0.06,215.72,215.64,51.52852702]
[1756446146817,0.06,215.72,215.68,4.63641079]
[1756446147222,0.06,215.72,215.68,5.29641079]
[1756446147621,0.06,215.72,215.66,42.09678633]
[1756446147622,0.76,215.72,215.66,42.09678633]
[1756446148834,0.76,215.72,215.66,42.75678633]
[1756446150829,0.06,215.72,215.66,5.29678633]
[1756446151131,0.06,215.72,215.66,42.75678633]
[1756446151316,0.06,215.72,215.67,0.68]
[1756446151522,0.06,215.72,215.64,37.46]
[1756446151716,0.06,215.72,215.68,0.68]
[1756446152230,0.06,215.72,215.71,26.0]
[1756446152434,0.06,215.72,215.71,26.68]
[1756446153537,0.06,215.72,215.71,31.31585369]
[1756446154412,0.06,215.72,215.71,68.77585369]
[1756446155435,0.06,215.72,215.71,70.63325169]
[1756446156327,0.06,215.72,215.71,33.17325169]
[1756446156634,0.06,215.72,215.71,70.61325169]
[1756446159335,0.06,215.72,215.71,32.49325169]
[1756446159641,0.06,215.72,215.71,37.44]
[1756446162043,0.06,215.72,215.7,4.63599048]
[1756446162246,0.06,215.72,215.71,37.44]
[1756446162821,0.72,215.72,215.68,4.63646913]
[1756446163120,0.72,215.72,215.69,37.44]
[1756446163438,0.06,215.72,215.69,37.44]
[1756446164820,0.66,215.71,215.64,79.0]
[1756446165027,0.66,215.7,215.63,38.12]
[1756446166122,0.94432314,215.7,215.63,42.75756979]
[1756446167141,0.28432314,215.7,215.63,42.75756979]
[1756446167340,0.66,215.69,215.63,42.75756979]
[1756446168144,0.94432314,215.68,215.6,0.71]
[1756446168446,13.59559401,215.67,215.61,37.44]
[1756446168621,14.25559401,215.67,215.61,37.44]
[1756446170442,14.25559401,215.67,215.61,42.07796555]
[1756446170644,0.28432314,215.68,215.62,0.68]
[1756446171333,0.28432314,215.68,215.62,38.12]
[1756446171529,0.72,215.72,215.63,0.68]
[1756446171737,13.59559401,215.71,215.63,0.68]
[1756446173452,13.93991715,215.72,215.64,4.63735856]
[1756446173656,0.06,215.72,215.67,26.0]
[1756446173832,0.06,215.72,215.68,38.12]
[1756446174255,0.06,215.72,215.69,0.68]
[1756446174440,0.06,215.72,215.69,38.12]
[1756446174952,0.06,215.72,215.71,8.52003494]
[1756446175330,0.06,215.72,215.71,9.20003494]
[1756446175852,0.06,215.72,215.71,13.15588863]
[1756446176239,0.06,215.72,215.71,4.63585369]
[1756446176441,0.06,215.72,215.71,13.15588863]
[1756446176836,0.06,215.72,215.71,13.83588863]
[1756446179735,0.06,215.72,215.71,51.25588863]
[1756446181163,0.06,215.72,215.71,130.25588863]
[1756446182154,0.06,215.72,215.71,87.52003494]
[1756446182358,0.06,215.72,215.71,124.94003494]
[1756446182767,0.06,215.72,215.71,51.25588863]
[1756446184066,0.06,215.72,215.71,77.25588863]
[1756446187051,0.06,215.72,215.71,39.83588863]
[1756446187250,0.06,215.72,215.71,72.31587116]
[1756446189172,0.06,215.75,215.71,88.84552286]
[1756446189356,0.06,215.75,215.74,4.26001747]
[1756446189668,0.06,215.75,215.74,41.66001747]
[1756446189853,0.06,215.75,215.74,42.34001747]
[1756446190051,0.06,215.77,215.76,26.0]
[1756446190262,0.06,215.77,215.76,67.66001747]
[1756446190457,0.06,215.77,215.76,68.34001747]
[1756446190754,0.06,215.77,215.76,72.97479685]
[1756446191988,0.06,215.78,215.76,72.97479685]
[1756446192284,0.06,215.79,215.77,4.94001747]
[1756446192451,0.06,215.79,215.78,41.66001747]
[1756446192652,0.06,215.79,215.78,42.34001747]
[1756446192869,0.06,215.79,215.78,46.29436727]
[1756446193481,0.06,215.79,215.78,8.89436727]
[1756446193779,0.06,215.79,215.78,46.29436727]
[1756446195756,0.75,215.79,215.78,4.26001747]
[1756446195976,0.75,215.79,215.78,41.66001747]
[1756446197884,0.75,215.79,215.78,41.64001747]
[1756446198368,0.75,215.79,215.77,41.64001747]
[1756446198561,0.69,215.78,215.77,41.64001747]
[1756446200775,0.69,215.78,215.77,37.38]
[1756446201180,0.06,215.79,215.77,46.95444468]
[1756446201367,0.06,215.79,215.78,4.94001747]
[1756446202379,0.06,215.79,215.78,9.57436727]
[1756446203878,0.06,215.79,215.78,8.89436727]
[1756446204252,0.06,215.79,215.78,46.27436727]
[1756446204773,0.06,215.79,215.78,46.95436727]
[1756446206470,0.06,215.79,215.78,48.81133427]
[1756446206777,1e-08,215.79,215.78,48.81133427]
[1756446206983,1e-08,215.79,215.78,127.81133427]
[1756446207479,0.06,215.82,215.78,127.81133427]
[1756446207667,0.06,215.82,215.81,34.52003494]
[1756446207977,0.06,215.82,215.81,67.62001747]
[1756446208179,0.06,215.82,215.81,68.30001747]
[1756446208564,0.06,215.82,215.81,72.93372304]
[1756446210174,0.06,215.84,215.81,156.19374051]
[1756446210175,1e-08,215.84,215.81,156.19374051]
[1756446210389,1e-08,215.84,215.83,4.26001747]
[1756446210684,1e-08,215.84,215.83,120.62001747]
[1756446210893,1e-08,215.84,215.83,67.62001747]
[1756446211182,1e-08,215.84,215.83,69.47664047]
[1756446212293,1e-08,215.84,215.83,74.10991665]
[1756446213286,1e-08,215.84,215.83,72.25329365]
[1756446214980,1e-08,215.84,215.83,72.95329365]
[1756446216008,1e-08,215.84,215.83,72.98329365]
[1756446216591,1e-08,215.84,215.83,151.98329365]
[1756446218007,1e-08,215.84,215.83,153.83957165]
[1756446220890,1e-08,215.84,215.83,111.51955418]
[1756446221095,1e-08,215.84,215.83,151.26329365]
[1756446221396,1e-08,215.84,215.83,151.96329365]
[1756446225109,1e-08,215.84,215.83,153.81948465]
[1756446227926,1e-08,215.84,215.83,153.11948465]
[1756446230625,1e-08,215.84,215.83,153.09948465]
[1756446231800,0.70000001,215.84,215.83,8.92329365]
[1756446232116,0.70000001,215.84,215.83,46.22329365]
[1756446233723,0.70000001,215.84,215.83,4.29001747]
[1756446233907,0.70000001,215.84,215.83,41.59001747]
[1756446235110,0.70000001,215.84,215.83,46.22329365]
[1756446235323,0.70000001,215.84,215.83,41.96327618]
[1756446235525,0.70000001,215.84,215.83,41.59001747]
[1756446236225,0.70000001,215.84,215.83,46.22329365]
[1756446236620,0.70000001,215.84,215.83,41.59001747]
[1756446238520,0.70000001,215.84,215.83,0.03]
[1756446238723,0.70000001,215.84,215.83,37.33]
[1756446241736,0.70000001,215.84,215.83,41.96327618]
[1756446242110,23.18867301,215.84,215.83,0.03]
[1756446242312,18.83993463,215.84,215.83,0.03]
[1756446243037,23.47299615,215.84,215.83,0.03]
[1756446246235,14.43775559,215.84,215.83,0.03]
[1756446246537,23.47299615,215.84,215.83,0.03]
[1756446248945,14.57991716,215.84,215.83,0.03]
[1756446249241,1e-08,215.84,215.83,0.72]
[1756446249444,1e-08,215.84,215.83,4.98001747]
[1756446249813,1e-08,215.84,215.83,0.72]
[1756446250241,5.20434062,215.84,215.83,0.03]
[1756446251540,0.94432315,215.84,215.83,0.03]
[1756446252040,23.43299615,215.84,215.83,0.03]
[1756446257017,49.43299615,215.84,215.83,0.03]
[1756446257221,53.69301362,215.84,215.83,0.03]
[1756446257950,0.28432314,215.82,215.8,0.03]
[1756446258122,55.41993462,215.81,215.8,0.03]
[1756446258323,56.07993462,215.81,215.8,0.03]
[1756446258526,60.71364019,215.81,215.8,0.03]
[1756446259644,56.45362272,215.81,215.8,0.03]
[1756446259852,60.71364019,215.81,215.8,0.03]
[1756446263045,18.79993462,215.81,215.8,0.03]
[1756446263242,60.03364019,215.81,215.8,0.03]
[1756446263445,60.69364019,215.81,215.8,0.03]
[1756446267850,55.77362272,215.81,215.8,0.03]
[1756446268057,60.03364019,215.81,215.8,0.03]
[1756446268663,60.69364019,215.81,215.8,0.03]
[1756446268953,60.03364019,215.81,215.8,0.03]
[1756446269545,60.69364019,215.81,215.8,0.03]
[1756446271544,60.69364019,215.81,215.78,0.03]
[1756446271545,13.87991715,215.8,215.78,0.03]
[1756446271738,55.37993462,215.79,215.78,0.03]
[1756446271944,59.17582987,215.79,215.78,0.03]
[1756446272141,56.05993462,215.79,215.78,0.03]
[1756446272757,55.37993462,215.79,215.78,0.03]
[1756446273352,60.01406965,215.79,215.78,0.03]
[1756446273745,4.26001747,215.79,215.78,0.69]
[1756446273950,41.50001747,215.8,215.78,0.69]
[1756446274160,0.28432314,215.79,215.78,0.03]
[1756446274337,17.85561148,215.8,215.79,0.66]
[1756446274662,18.13993462,215.8,215.79,0.66]
[1756446274856,13.59559401,215.8,215.79,0.66]
[1756446275055,17.85561148,215.8,215.79,0.66]
[1756446275363,18.13993462,215.8,215.79,0.66]
[1756446275561,17.99777305,215.8,215.79,0.66]
[1756446275753,18.13993462,215.8,215.79,0.66]
[1756446276373,22.77385491,215.8,215.79,0.66]
[1756446277360,13.87991715,215.79,215.78,0.03]
[1756446277566,60.01406965,215.79,215.78,0.03]
[1756446279864,60.69406965,215.79,215.78,0.03]
[1756446281581,66.40256601,215.79,215.78,0.03]
[1756446281878,29.16256601,215.79,215.78,0.03]
[1756446282062,60.67406965,215.79,215.78,0.03]
[1756446283144,59.70974651,215.79,215.78,0.03]
[1756446283348,8.48419058,215.8,215.78,0.69]
[1756446283569,4.26001747,215.8,215.78,0.69]
[1756446283762,4.26001747,215.8,215.78,0.03]
[1756446284168,0.28432314,215.79,215.78,0.03]
[1756446284359,4.26001747,215.8,215.78,0.03]
[1756446284571,0.28432314,215.79,215.78,0.03]
[1756446285469,1e-08,215.84,215.78,4.29001747]
[1756446285683,0.06,215.8,215.78,0.03]
[1756446285995,0.06,215.8,215.79,4.92001747]
[1756446286292,0.06,215.8,215.79,30.92001747]
[1756446286650,0.06,215.8,215.79,35.5541525]
[1756446287857,0.06,215.8,215.79,0.66]
[1756446288778,0.06,215.8,215.79,5.29413503]
[1756446289578,0.06,215.8,215.79,9.5541525]
[1756446289972,0.06,215.8,215.79,5.29413503]
[1756446290286,0.06,215.8,215.79,9.5541525]
[1756446293097,0.06,215.8,215.79,5.29413503]
[1756446293389,0.06,215.8,215.79,9.5541525]
[1756446295998,0.06,215.8,215.79,11.4109475]
[1756446296790,0.06,215.8,215.79,90.4109475]
[1756446298093,0.06,215.83,215.82,26.0]
[1756446298295,0.06,215.83,215.82,63.18]
[1756446298590,0.06,215.83,215.82,68.10001747]
[1756446298792,0.06,215.83,215.82,69.95663947]
[1756446299298,0.06,215.83,215.82,74.59013034]
[1756446300897,0.06,215.83,215.82,26.0]
[1756446301197,0.06,215.83,215.82,4.98001747]
[1756446301882,0.06,215.83,215.82,4.26001747]
[1756446302485,0.06,215.83,215.81,67.79362849]
[1756446302688,0.06,215.83,215.82,4.26001747]
[1756446303490,0.06,215.83,215.82,4.98001747]
[1756446303909,0.75,215.83,215.78,1.886795]
[1756446304089,0.69,215.82,215.78,41.45001747]
[1756446304284,4.26001747,215.8,215.78,0.03]
[1756446304489,4.54434061,215.8,215.79,0.03]
[1756446304710,5.23434061,215.8,215.79,0.03]
[1756446304920,0.28432314,215.8,215.79,0.03]
[1756446305417,0.97432314,215.8,215.79,0.03]
[1756446306897,5.23434061,215.8,215.79,0.03]
[1756446307411,0.97432314,215.8,215.79,0.03]
[1756446307595,0.06,215.83,215.79,5.01001747]
[1756446307796,0.06,215.83,215.81,4.26001747]
[1756446307994,0.06,215.83,215.81,8.89361995]
[1756446308206,0.06,215.83,215.82,0.72]
[1756446308395,0.06,215.83,215.82,4.98001747]
[1756446308800,0.06,215.83,215.82,42.12001747]
[1756446309718,0.06,215.83,215.82,46.75350834]
[1756446311809,0.06,215.83,215.82,9.61350834]
[1756446312119,0.06,215.83,215.82,46.75350834]
[1756446314012,0.06,215.83,215.82,51.01352581]
[1756446314326,0.06,215.83,215.82,46.75350834]
[1756446314521,0.06,215.83,215.82,125.75350834]
[1756446314832,0.06,215.83,215.82,127.61004434]
[1756446315320,1e-08,215.84,215.82,131.87006181]
[1756446315528,1e-08,215.84,215.83,4.98001747]
[1756446315694,1e-08,215.84,215.83,83.98001747]
[1756446316426,1e-08,215.84,215.83,121.10001747]
[1756446316908,1e-08,215.84,215.83,125.73329365]
[1756446319293,1e-08,215.84,215.83,85.48964018]
[1756446319505,1e-08,215.84,215.83,125.73329365]
[1756446323910,1e-08,215.84,215.83,125.76329365]
[1756446324215,1e-08,215.84,215.83,127.61982965]
[1756446326428,0.69,215.9,215.83,127.61982965]
[1756446326429,13.65559401,215.97,215.86,26.0]
[1756446326635,4.26001747,215.95,215.89,4.26001747]
[1756446326930,13.59559401,215.95,215.9,41.36001747]
[1756446327631,4.26001747,215.96,215.91,4.63155944]
[1756446328211,4.26001747,215.95,215.91,4.63155944]
[1756446328425,0.68,215.94,215.91,4.63155944]
[1756446328633,0.68,215.93,215.91,4.63155944]
[1756446330014,0.68,215.96,215.91,8.89157691]
[1756446330213,4.94001747,215.96,215.92,37.08]
[1756446330529,0.68,215.95,215.92,37.08]
[1756446331106,0.06,215.97,215.93,4.63113045]
[1756446331322,0.74,215.97,215.93,4.63113045]
[1756446331734,0.74,215.97,215.93,8.89114792]
[1756446331922,0.74,215.97,215.93,4.63113045]
[1756446332127,4.26001747,215.94,215.91,37.08]
[1756446332330,0.68,215.93,215.91,37.08]
[1756446332531,4.26001747,215.94,215.91,37.08]
[1756446332726,2.44001747,215.94,215.91,37.08]
[1756446332916,2.44001747,215.94,215.9,26.0]
[1756446333118,0.28432314,215.94,215.9,67.71177241]
[1756446333337,4.26001747,215.93,215.9,67.71177241]
[1756446333539,4.54434061,215.94,215.9,67.71177241]
[1756446334044,4.54434061,215.94,215.9,30.63177241]
[1756446334636,4.54434061,215.94,215.9,26.0]
[1756446334821,0.28432314,215.94,215.91,0.71]
[1756446335020,0.28432314,215.94,215.9,34.89176029]
[1756446335441,0.28432314,215.94,215.9,35.60176029]
[1756446335738,4.54434061,215.94,215.9,26.0]
[1756446335935,0.06,215.97,215.9,30.63176055]
[1756446336122,4.26001747,215.95,215.9,30.63176055]
[1756446337128,4.26001747,215.95,215.9,31.34176055]
[1756446337329,0.06,215.97,215.91,4.26001747]
[1756446337524,4.32001747,215.97,215.92,0.71]
[1756446337748,0.06,215.97,215.93,4.26001747]
[1756446338037,0.06,215.97,215.94,0.71]
[1756446338525,4.32001747,215.97,215.91,4.97001747]
[1756446338844,4.32001747,215.97,215.93,4.26001747]
[1756446338845,0.06,215.97,215.93,4.26001747]
[1756446339045,0.06,215.97,215.94,0.71]
[1756446339740,4.32001747,215.97,215.91,35.60137629]
[1756446339944,4.32001747,215.97,215.9,41.69175538]
[1756446339945,4.26001747,215.94,215.9,41.69175538]
[1756446340152,4.26001747,215.95,215.91,0.71]
[1756446340827,4.26001747,215.95,215.9,37.06]
[1756446341230,4.26001747,215.95,215.9,42.40176277]
[1756446341734,4.26001747,215.95,215.91,0.71]
[1756446342449,0.14216157,215.95,215.92,0.71]
[1756446342746,4.32001747,215.97,215.93,0.71]
[1756446342947,0.06,215.97,215.94,0.71]
[1756446343119,0.06,215.97,215.95,0.71]
[1756446344128,0.06,215.97,215.93,34.89093481]
[1756446344329,0.06,215.97,215.94,0.71]
[1756446345049,4.32001747,215.97,215.94,0.71]
[1756446345439,0.06,215.97,215.94,5.34087]
[1756446345628,0.06,215.97,215.95,0.71]
[1756446346442,0.06,215.97,215.94,4.63087]
[1756446346752,0.06,215.97,215.95,0.71]
[1756446347831,4.32001747,215.97,215.94,26.0]
[1756446348136,4.32001747,215.97,215.94,26.71]
[1756446350437,4.32001747,215.97,215.95,0.71]
[1756446351273,0.06,215.97,215.95,0.71]
[1756446352937,0.06,215.97,215.95,5.34069689]
[1756446353136,0.06,215.97,215.95,0.71]
[1756446354760,0.06,215.97,215.94,30.63087743]
[1756446354960,0.06,215.97,215.95,0.71]
[1756446355361,0.06,215.97,215.95,5.34069296]
[1756446355849,0.06,215.97,215.96,4.97001747]
[1756446357044,0.06,215.97,215.96,9.60050459]
[1756446359976,0.06,215.97,215.96,46.60050459]
[1756446360150,0.06,215.97,215.96,9.60050459]
[1756446360351,0.06,215.97,215.96,46.60050459]
[1756446361448,0.06,215.99,215.98,26.0]
[1756446361649,0.06,215.99,215.98,30.26001747]
[1756446361859,0.06,215.99,215.98,30.95001747]
[1756446362573,1e-08,215.99,215.98,30.95001747]
[1756446363168,2639.94826291,216.0,215.98,44.54561148]
[1756446363363,2639.94826291,216.0,215.99,46.55986144]
[1756446363562,2584.81517585,216.0,215.99,46.55986144]
[1756446364082,2508.07186273,216.0,215.99,60.47096944]
[1756446364381,2416.73360775,216.0,215.99,74.06656345]
[1756446364575,2416.73360775,216.0,215.99,19.23095197]
[1756446364762,2416.73360775,216.0,215.99,23.49096944]
[1756446364953,2416.73360775,216.0,215.99,9.57986144]
[1756446365352,2416.73360775,216.0,215.99,46.55986144]
[1756446367271,2416.73360775,216.0,215.99,9.57986144]
[1756446367584,2416.73360775,216.0,215.99,46.53986144]
[1756446367974,2416.73360775,216.0,215.99,125.53986144]
[1756446368175,2416.73360775,216.0,215.99,88.57986144]
[1756446368376,2416.73360775,216.0,215.99,125.53986144]
[1756446369886,2416.73360775,216.0,215.99,84.31984397]
[1756446370195,2416.73360775,216.0,215.99,36.96]
[1756446370487,2416.73360775,216.0,215.99,41.22001747]
[1756446371767,2416.73360775,216.0,215.98,30.62992442]
[1756446371973,2416.73360775,216.0,215.99,62.96]
[1756446374387,2416.73360775,216.0,215.99,67.58984397]
[1756446374588,2416.73360775,216.0,215.99,62.96]
[1756446378075,2416.73360775,216.0,215.99,36.94]
[1756446378692,2416.73360775,216.0,215.99,41.89001747]
[1756446379685,2416.73360775,216.0,215.99,46.51986144]
[1756446379885,2362.41618128,216.0,215.99,46.51986144]
[1756446380087,2249.47333268,216.0,215.99,74.31088659]
[1756446380291,2185.43944469,216.0,215.99,74.31088659]
[1756446380472,2185.43944469,216.0,215.99,45.23095197]
[1756446380677,2185.43944469,216.0,215.99,59.74096944]
[1756446381603,2137.97812715,216.0,215.99,59.74096944]
[1756446381899,2114.73585998,216.0,215.99,59.74096944]
[1756446382997,2114.73585998,216.0,215.99,59.69096944]
[1756446383591,2090.54766358,216.0,215.99,59.69096944]
[1756446383802,2042.75584513,216.0,215.99,59.69096944]
[1756446384121,2042.75584513,216.0,215.99,59.67096944]
[1756446384285,2042.75584513,216.0,215.99,22.75096944]
[1756446384603,2042.75584513,216.0,215.99,59.67096944]
[1756446385805,2042.75584513,216.0,215.99,138.67096944]
[1756446385979,2042.75584513,216.0,215.99,97.49095197]
[1756446386182,2042.75584513,216.0,215.99,138.67096944]
[1756446391409,2042.75584513,216.0,215.99,101.75096944]
[1756446391729,2043.45584513,216.0,215.99,8.83986144]
[1756446391892,2043.45584513,216.0,215.99,45.73986144]
[1756446393409,2043.45584513,216.0,215.99,41.47984397]
[1756446393611,2043.45584513,216.0,215.99,45.73986144]
[1756446395210,2043.45584513,216.0,215.99,8.83986144]
[1756446395416,2042.75584513,216.0,215.99,45.71986144]
[1756446395785,2019.32036164,216.0,215.99,59.63161444]
[1756446396323,1995.78054491,216.0,215.99,59.63161444]
[1756446396617,1948.80775291,216.0,215.99,59.63161444]
[1756446396820,1924.01832731,216.0,215.99,59.91593758]
[1756446397117,1829.87923213,216.0,215.99,59.91593758]
[1756446397600,1798.69246782,216.0,215.99,138.91593758]
[1756446397914,1602.19484613,216.0,215.99,306.91153159]
[1756446398220,1554.65179218,216.0,215.99,273.31593758]
[1756446398390,1529.89814471,216.0,215.99,273.31593758]
[1756446398588,1505.31229685,216.0,215.99,273.31593758]
[1756446398789,1455.00254997,216.0,215.99,286.91153159]
[1756446399001,1422.76495844,216.0,215.99,286.91153159]
[1756446399198,1384.64883272,216.0,215.99,176.77154906]
[1756446399401,1382.41327032,216.0,215.99,139.89154906]
[1756446399695,1377.7791692,216.0,215.99,172.51153159]
[1756446400096,1377.7791692,216.0,215.99,148.25151412]
[1756446400299,1377.7791692,216.0,215.99,172.51153159]
[1756446401016,1319.50001818,216.0,215.99,311.17154906]
[1756446401398,1314.86591706,216.0,215.99,311.17154906]
[1756446401918,1256.58676604,216.0,215.99,311.17154906]
[1756446402109,1251.95266492,216.0,215.99,311.17154906]
[1756446402505,1247.31985206,216.0,215.99,311.17154906]
[1756446403019,1189.0419893,216.0,215.99,311.17154906]
[1756446403402,1184.40917644,216.0,215.99,311.17154906]
[1756446403801,1129.4666167,216.0,215.99,311.17154906]
[1756446403997,1126.13131368,216.0,215.99,311.17154906]
[1756446404204,1121.49850082,216.0,215.99,311.17154906]
[1756446404614,1116.86568796,216.0,215.99,311.17154906]
[1756446404819,1066.55594108,216.0,215.99,311.17154906]
[1756446404999,1058.5878252,216.0,215.99,311.17154906]
[1756446405307,1053.95501234,216.0,215.99,311.17154906]
[1756446405712,1049.32287743,216.0,215.99,311.17154906]
[1756446405922,995.67782753,216.0,215.99,311.17154906]
[1756446406110,991.04569262,216.0,215.99,311.17154906]
[1756446406511,986.41355771,216.0,215.99,311.17154906]
[1756446406714,986.41355771,216.0,215.99,274.29154906]
[1756446407022,931.47167592,216.0,215.99,311.15154906]
[1756446407404,926.83954101,216.0,215.99,311.15154906]
[1756446407807,922.2074061,216.0,215.99,311.15154906]